fUSD/lending_fUSD_20240619
["ID","MTS","AMOUNT","RATE_DAILY","PERIOD"]
[329890507,1718799044210,-565.53,0.00013698,2]
[329890508,1718799044219,-500.0,0.00013698,2]
[329890509,1718799044229,-500.0,0.00013698,2]
[329890510,1718799044238,-1030.32,0.00013698,2]
[329890511,1718799044248,-1172.57,0.00013698,2]
[329890512,1718799044259,-500.0,0.00013698,2]
[329890513,1718799044269,-524.34,0.00013698,2]
[329890514,1718799044279,-641.51381531,0.00013698,2]
[329890515,1718799044288,-500.0,0.00013698,2]
[329890516,1718799044299,-500.0,0.00013698,2]
[329890517,1718799044308,-549.1521604,0.00013698,2]
[329890518,1718799044317,-500.0,0.00013698,2]
[329890519,1718799044327,-500.0,0.00013698,2]
[329890520,1718799044337,-500.0,0.00013698,2]
[329890521,1718799044347,-1022.46,0.00013698,2]
[329890522,1718799044356,-1077.85,0.00013698,2]
[329890523,1718799044366,-500.0,0.00013698,2]
[329890524,1718799044376,-500.0,0.00013698,2]
[329890525,1718799044386,-519.21,0.00013698,2]
[329890526,1718799044396,-1312.18,0.00013698,2]
[329890527,1718799044406,-500.0,0.00013698,2]
[329890528,1718799044417,-500.0,0.00013698,2]
[329890529,1718799044427,-500.0,0.00013698,2]
[329890530,1718799044437,-543.42,0.00013698,2]
[329890531,1718799044447,-511.27659262,0.00013698,2]
[329890532,1718799044458,-572.93261721,0.00013698,2]
[329890533,1718799044471,-500.0,0.00013698,2]
[329890534,1718799044481,-500.0,0.00013698,2]
[329890535,1718799044491,-947.71,0.00013698,2]
[329890536,1718799044501,-500.0,0.00013698,2]
[329890537,1718799044714,-500.0,0.00013698,2]
[329890538,1718799044757,-1032.66,0.00013698,2]
[329890539,1718799044768,-528.03,0.00013698,2]
[329890540,1718799044778,-500.0,0.00013698,2]
[329890541,1718799044787,-500.0,0.00013698,2]
[329890542,1718799044797,-500.0,0.00013698,2]
[329890543,1718799044807,-823.07,0.00013698,2]
[329890544,1718799044817,-759.3,0.00013698,2]
[329890545,1718799044826,-500.0,0.00013698,2]
[329890546,1718799044836,-552.18681853,0.00013698,2]
[329890547,1718799044846,-500.0,0.00013698,2]
[329890548,1718799044856,-564.87,0.00013698,2]
[329890549,1718799044866,-500.0,0.00013698,2]
[329890550,1718799044876,-1873.95,0.00013698,2]
[329890551,1718799044885,-500.0,0.00013698,2]
[329890552,1718799044895,-619.1687705,0.00013698,2]
[329890553,1718799044905,-448.3643029,0.00013698,2]
[329890554,1718799044915,-500.0,0.00013698,2]
[329890555,1718799044924,-645.3,0.00013698,2]
[329890556,1718799044934,-500.0,0.00013698,2]
[329890557,1718799044944,-500.0,0.00013698,2]
[329890558,1718799044954,-500.0,0.00013698,2]
[329890559,1718799044963,-500.0,0.00013698,2]
[329890560,1718799044973,-1340.42,0.00013698,2]
[329890561,1718799044983,-1209.32,0.00013698,2]
[329890562,1718799044993,-500.0,0.00013698,2]
[329890563,1718799045003,-956.36,0.00013698,2]
[329890564,1718799045015,-500.0,0.00013698,2]
[329890565,1718799045026,-500.0,0.00013698,2]
[329890566,1718799045036,-289.73735682,0.00013698,2]
[329890567,1718799045045,-1509.21,0.00013698,2]
[329890568,1718799045055,-643.23047424,0.00013698,2]
[329890569,1718799045066,-500.0,0.00013698,2]
[329890570,1718799045076,-549.19115638,0.00013698,2]
[329890571,1718799045085,-500.0,0.00013698,2]
[329890572,1718799045095,-500.0,0.00013698,2]
[329890573,1718799045105,-1120.04,0.00013698,2]
[329890574,1718799045115,-500.0,0.00013698,2]
[329890575,1718799045125,-1523.67,0.00013698,2]
[329890576,1718799045135,-588.35,0.00013698,2]
[329890577,1718799045145,-500.0,0.00013698,2]
[329890578,1718799045155,-500.0,0.00013698,2]
[329890579,1718799045164,-500.0,0.00013698,2]
[329890580,1718799045174,-1613.11,0.00013698,2]
[329890581,1718799045184,-619.17,0.00013698,2]
[329890582,1718799045194,-500.0,0.00013698,2]
[329890583,1718799045204,-500.0,0.00013698,2]
[329890584,1718799045213,-1079.06,0.00013698,2]
[329890585,1718799045223,-881.96,0.00013698,2]
[329890586,1718799045233,-1286.6,0.00013698,2]
[329890587,1718799045243,-514.47364842,0.00013698,2]
[329890588,1718799045252,-625.53371379,0.00013698,2]
[329890589,1718799045261,-500.0,0.00013698,2]
[329890590,1718799045273,-620.99,0.00013698,2]
[329890591,1718799045282,-500.0,0.00013698,2]
[329890592,1718799045292,-500.0,0.00013698,2]
[329890593,1718799045302,-500.0,0.00013698,2]
[329890594,1718799045311,-989.09,0.00013698,2]
[329890595,1718799045321,-500.0,0.00013698,2]
[329890596,1718799045330,-600.08,0.00013698,2]
[329890597,1718799045340,-500.0,0.00013698,2]
[329890598,1718799045349,-500.0,0.00013698,2]
[329890599,1718799045359,-500.0,0.00013698,2]
[329890600,1718799045368,-2167.14,0.00013698,2]
[329890601,1718799045377,-500.0,0.00013698,2]
[329890602,1718799045387,-1512.83,0.00013698,2]
[329890603,1718799045396,-500.0,0.00013698,2]
[329890604,1718799045406,-950.65,0.00013698,2]
[329890605,1718799045416,-693.03,0.00013698,2]
[329890606,1718799045425,-1821.49,0.00013698,2]
[329890607,1718799045434,-555.95356023,0.00013698,2]
[329890608,1718799045444,-631.69,0.00013698,2]
[329890609,1718799045457,-1614.91,0.00013698,2]
[329890610,1718799045471,-500.0,0.00013698,2]
[329890611,1718799045482,-500.0,0.00013698,2]
[329890612,1718799045491,-500.0,0.00013698,2]
[329890613,1718799045503,-1216.84,0.00013698,2]
[329890614,1718799045512,-516.13,0.00013698,2]
[329890615,1718799045523,-500.0,0.00013698,2]
[329890616,1718799045533,-1051.33,0.00013698,2]
[329890617,1718799045544,-554.6,0.00013698,2]
[329890618,1718799045555,-1274.85,0.00013698,2]
[329890619,1718799045564,-615.31,0.00013698,2]
[329890620,1718799045575,-642.74,0.00013698,2]
[329890621,1718799045585,-1483.49,0.00013698,2]
[329890622,1718799045595,-500.0,0.00013698,2]
[329890623,1718799045604,-1192.65,0.00013698,2]
[329890624,1718799045613,-500.0,0.00013698,2]
[329890625,1718799045624,-500.0,0.00013698,2]
[329890626,1718799045635,-500.0,0.00013698,2]
[329890627,1718799045645,-500.0,0.00013698,2]
[329890628,1718799045655,-500.0,0.00013698,2]
[329890629,1718799045665,-500.0,0.00013698,2]
[329890630,1718799045675,-601.88,0.00013698,2]
[329890631,1718799045684,-500.0,0.00013698,2]
[329890632,1718799045694,-500.0,0.00013698,2]
[329890633,1718799045703,-1815.06,0.00013698,2]
[329890634,1718799045714,-500.0,0.00013698,2]
[329890635,1718799045723,-500.0,0.00013698,2]
[329890636,1718799045733,-500.0,0.00013698,2]
[329890637,1718799045743,-500.0,0.00013698,2]
[329890638,1718799045754,-500.0,0.00013698,2]
[329890639,1718799045765,-1350.34,0.00013698,2]
[329890640,1718799045775,-500.0,0.00013698,2]
[329890641,1718799045785,-500.0,0.00013698,2]
[329890642,1718799045794,-500.0,0.00013698,2]
[329890643,1718799045804,-614.85,0.00013698,2]
[329890644,1718799045813,-2039.62,0.00013698,2]
[329890645,1718799045823,-2309.52,0.00013698,2]
[329890646,1718799045833,-500.0,0.00013698,2]
[329890647,1718799045842,-500.0,0.00013698,2]
[329890648,1718799045852,-500.0,0.00013698,2]
[329890649,1718799045862,-500.0,0.00013698,2]
[329890650,1718799045871,-1129.03,0.00013698,2]
[329890651,1718799045880,-500.0,0.00013698,2]
[329890652,1718799045890,-883.88,0.00013698,2]
[329890653,1718799045900,-357.74711197,0.00013698,2]
[329890654,1718799045909,-684.45,0.00013698,2]
[329890655,1718799045919,-1751.62,0.00013698,2]
[329890656,1718799045928,-725.72,0.00013698,2]
[329890657,1718799045938,-500.0,0.00013698,2]
[329890658,1718799045947,-500.0,0.00013698,2]
[329890659,1718799045957,-500.0,0.00013698,2]
[329890660,1718799045966,-500.0,0.00013698,2]
[329890661,1718799045975,-504.95,0.00013698,2]
[329890662,1718799045984,-881.02,0.00013698,2]
[329890663,1718799045994,-1139.34,0.00013698,2]
[329890664,1718799046003,-929.58,0.00013698,2]
[329890665,1718799046014,-500.0,0.00013698,2]
[329890666,1718799046024,-172.94387223,0.00013698,2]
[329890667,1718799046034,-500.0,0.00013698,2]
[329890668,1718799046043,-983.08,0.00013698,2]
[329890669,1718799046053,-1573.74,0.00013698,2]
[329890670,1718799046062,-500.0,0.00013698,2]
[329890671,1718799046071,-943.82,0.00013698,2]
[329890672,1718799046082,-500.0,0.00013698,2]
[329890673,1718799046091,-1035.47,0.00013698,2]
[329890674,1718799046101,-500.0,0.00013698,2]
[329890675,1718799046111,-1082.56,0.00013698,2]
[329890676,1718799046120,-515.90401229,0.00013698,2]
[329890677,1718799046129,-1977.28,0.00013698,2]
[329890678,1718799046139,-558.41787181,0.00013698,2]
[329890679,1718799046148,-500.0,0.00013698,2]
[329890680,1718799046158,-624.95,0.00013698,2]
[329890681,1718799046168,-500.0,0.00013698,2]
[329890682,1718799046178,-748.17,0.00013698,2]
[329890683,1718799046188,-500.0,0.00013698,2]
[329890684,1718799046199,-677.95,0.00013698,2]
[329890685,1718799046210,-1754.43,0.00013698,2]
[329890686,1718799046220,-500.0,0.00013698,2]
[329890687,1718799046231,-1236.9,0.00013698,2]
[329890688,1718799046241,-500.0,0.00013698,2]
[329890689,1718799046253,-831.33,0.00013698,2]
[329890690,1718799046266,-500.0,0.00013698,2]
[329890691,1718799046275,-500.0,0.00013698,2]
[329890692,1718799046284,-597.9,0.00013698,2]
[329890693,1718799046294,-599.06,0.00013698,2]
[329890694,1718799046303,-500.0,0.00013698,2]
[329890695,1718799046314,-1239.49,0.00013698,2]
[329890697,1718799046325,-1632.72,0.00013698,2]
[329890699,1718799046336,-500.0,0.00013698,2]
[329890701,1718799046346,-558.5,0.00013698,2]
[329890703,1718799046355,-500.0,0.00013698,2]
[329890705,1718799046364,-500.0,0.00013698,2]
[329890707,1718799046374,-521.02439519,0.00013698,2]
[329890709,1718799046384,-1555.09,0.00013698,2]
[329890711,1718799046393,-1094.16,0.00013698,2]
[329890714,1718799046408,-622.41,0.00013698,2]
[329890715,1718799046417,-500.0,0.00013698,2]
[329890717,1718799046427,-1179.03,0.00013698,2]
[329890720,1718799046436,-1488.65,0.00013698,2]
[329890722,1718799046446,-500.0,0.00013698,2]
[329890724,1718799046461,-500.0,0.00013698,2]
[329890726,1718799046470,-3278.22,0.00013698,2]
[329890728,1718799046480,-1317.38,0.00013698,2]
[329890730,1718799046490,-3878.29,0.00013698,2]
[329890732,1718799046501,-1747.53,0.00013698,2]
[329890734,1718799046511,-647.14951092,0.00013698,2]
[329890736,1718799046522,-783.59,0.00013698,2]
[329890738,1718799046532,-500.0,0.00013698,2]
[329890740,1718799046541,-455.45262968,0.00013698,2]
[329890742,1718799046551,-3278.04,0.00013698,2]
[329890744,1718799046561,-500.0,0.00013698,2]
[329890746,1718799046570,-1135.06,0.00013698,2]
[329890748,1718799046579,-500.0,0.00013698,2]
[329890750,1718799046589,-545.96,0.00013698,2]
[329890752,1718799046599,-642.53161484,0.00013698,2]
[329890753,1718799046608,-500.0,0.00013698,2]
[329890755,1718799046618,-962.86,0.00013698,2]
[329890756,1718799046628,-2013.19,0.00013698,2]
[329890757,1718799046638,-612.83,0.00013698,2]
[329890758,1718799046647,-2089.7,0.00013698,2]
[329890759,1718799046656,-3725.5,0.00013698,2]
[329890760,1718799046667,-5954.82,0.00013698,2]
[329890761,1718799046676,-1478.0,0.00013698,2]
[329890762,1718799046685,-500.0,0.00013698,2]
[329890763,1718799046695,-1561.79,0.00013698,2]
[329890764,1718799046704,-500.0,0.00013698,2]
[329890765,1718799046714,-907.94,0.00013698,2]
[329890766,1718799046723,-500.0,0.00013698,2]
[329890767,1718799046733,-500.0,0.00013698,2]
[329890768,1718799046742,-500.0,0.00013698,2]
[329890769,1718799046751,-3090.7,0.00013698,2]
[329890770,1718799046761,-500.0,0.00013698,2]
[329890771,1718799046771,-500.0,0.00013698,2]
[329890772,1718799046781,-1234.15,0.00013698,2]
[329890773,1718799046790,-1004.09,0.00013698,2]
[329890774,1718799046800,-1476.17,0.00013698,2]
[329890775,1718799046809,-500.0,0.00013698,2]
[329890776,1718799046819,-500.0,0.00013698,2]
[329890777,1718799046829,-500.0,0.00013698,2]
[329890778,1718799046838,-500.0,0.00013698,2]
[329890779,1718799046848,-1380.37,0.00013698,2]
[329890780,1718799046857,-8731.38,0.00013698,2]
[329890781,1718799046867,-500.0,0.00013698,2]
[329890782,1718799046876,-1851.5,0.00013698,2]
[329890783,1718799046885,-500.0,0.00013698,2]
[329890784,1718799046895,-3162.75,0.00013698,2]
[329890785,1718799046904,-1184.57,0.00013698,2]
[329890786,1718799046913,-500.0,0.00013698,2]
[329890787,1718799046923,-500.0,0.00013698,2]
[329890789,1718799046932,-2106.02,0.00013698,2]
[329890791,1718799046942,-728.08,0.00013698,2]
[329890793,1718799046952,-500.0,0.00013698,2]
[329890795,1718799046962,-1243.41,0.00013698,2]
[329890797,1718799046971,-1151.48,0.00013698,2]
[329890799,1718799046980,-3559.67,0.00013698,2]
[329890801,1718799046990,-500.0,0.00013698,2]
[329890804,1718799046999,-1698.71,0.00013698,2]
[329890806,1718799047009,-2128.1,0.00013698,2]
[329890808,1718799047019,-2618.34,0.00013698,2]
[329890810,1718799047028,-500.0,0.00013698,2]
[329890812,1718799047038,-500.0,0.00013698,2]
[329890814,1718799047048,-500.0,0.00013698,2]
[329890816,1718799047057,-609.92,0.00013698,2]
[329890818,1718799047067,-1392.23,0.00013698,2]
[329890820,1718799047076,-500.0,0.00013698,2]
[329890822,1718799047086,-3329.4,0.00013698,2]
[329890824,1718799047095,-500.0,0.00013698,2]
[329890826,1718799047105,-3332.68,0.00013698,2]
[329890828,1718799047114,-1324.46,0.00013698,2]
[329890838,1718799047202,-2091.25,0.00013698,2]
[329890840,1718799047212,-1118.52,0.00013698,2]
[329890842,1718799047221,-500.0,0.00013698,2]
[329890844,1718799047231,-500.0,0.00013698,2]
[329890846,1718799047240,-623.13,0.00013698,2]
[329890848,1718799047249,-500.0,0.00013698,2]
[329890850,1718799047258,-500.0,0.00013698,2]
[329890852,1718799047268,-695.59,0.00013698,2]
[329890854,1718799047277,-500.0,0.00013698,2]
[329890856,1718799047286,-755.3,0.00013698,2]
[329890858,1718799047295,-544.65,0.00013698,2]
[329890860,1718799047304,-2223.45,0.00013698,2]
[329890862,1718799047313,-1393.06,0.00013698,2]
[329890864,1718799047322,-679.96,0.00013698,2]
[329890866,1718799047331,-2177.77,0.00013698,2]
[329890868,1718799047341,-500.0,0.00013698,2]
[329890870,1718799047350,-500.0,0.00013698,2]
[329890872,1718799047359,-500.0,0.00013698,2]
[329890874,1718799047368,-455.66132131,0.00013698,2]
[329890876,1718799047377,-971.62,0.00013698,2]
[329890878,1718799047386,-1247.83,0.00013698,2]
[329890880,1718799047395,-936.05,0.00013698,2]
[329890882,1718799047405,-952.18,0.00013698,2]
[329890884,1718799047414,-1050.71,0.00013698,2]
[329890886,1718799047423,-1680.51,0.00013698,2]
[329890888,1718799047433,-3511.36,0.00013698,2]
[329890890,1718799047442,-1867.83,0.00013698,2]
[329890892,1718799047452,-2685.0,0.00013698,2]
[329890894,1718799047461,-435.94018683,0.00013698,2]
[329890896,1718799047474,-6373.44,0.00013698,2]
[329890898,1718799047483,-500.0,0.00013698,2]
[329890900,1718799047493,-4369.34,0.00013698,2]
[329890902,1718799047503,-971.66,0.00013698,2]
[329890904,1718799047512,-1502.55,0.00013698,2]
[329890906,1718799047523,-2045.46,0.00013698,2]
[329890908,1718799047532,-1031.7,0.00013698,2]
[329890910,1718799047544,-1706.87,0.00013698,2]
[329890912,1718799047553,-500.0,0.00013698,2]
[329890914,1718799047562,-894.38,0.00013698,2]
[329890916,1718799047571,-500.0,0.00013698,2]
[329890918,1718799047581,-994.85,0.00013698,2]
[329890920,1718799047590,-1115.18,0.00013698,2]
[329890922,1718799047599,-4224.0,0.00013698,2]
[329890924,1718799047608,-2730.96,0.00013698,2]
[329890926,1718799047618,-1274.9,0.00013698,2]
[329890928,1718799047627,-501.98,0.00013698,2]
[329890930,1718799047637,-500.0,0.00013698,2]
[329890932,1718799047646,-500.0,0.00013698,2]
[329890935,1718799047655,-692.95,0.00013698,2]
[329890937,1718799047665,-5000.0,0.00013698,2]
[329890938,1718799047674,-767.92,0.00013698,2]
[329890940,1718799047683,-990.99,0.00013698,2]
[329890943,1718799047692,-9585.84,0.00013698,2]
[329890945,1718799047703,-3534.25,0.00013698,2]
[329890947,1718799047714,-806.89,0.00013698,2]
[329890949,1718799047723,-723.78,0.00013698,2]
[329890951,1718799047732,-3168.33,0.00013698,2]
[329890953,1718799047741,-6452.02,0.00013698,2]
[329890955,1718799047750,-1471.6,0.00013698,2]
[329890957,1718799047759,-1038.98,0.00013698,2]
[329890959,1718799047769,-11792.37,0.00013698,2]
[329890960,1718799047778,-1193.73,0.00013698,2]
[329890962,1718799047787,-789.53,0.00013698,2]
[329890965,1718799047797,-500.0,0.00013698,2]
[329890967,1718799047807,-7402.88,0.00013698,2]
[329890969,1718799047816,-500.0,0.00013698,2]
[329890970,1718799047825,-749.41,0.00013698,2]
[329890972,1718799047834,-438.67219396,0.00013698,2]
[329890975,1718799047844,-500.0,0.00013698,2]
[329890976,1718799047852,-1465.73,0.00013698,2]
[329890979,1718799047862,-4075.64,0.00013698,2]
[329890981,1718799047871,-500.0,0.00013698,2]
[329890982,1718799047880,-820.23,0.00013698,2]
[329890985,1718799047890,-1891.33,0.00013698,2]
[329890986,1718799047900,-27156.13,0.00013698,2]
[329890989,1718799047909,-500.0,0.00013698,2]
[329890990,1718799047919,-439.76464328,0.00013698,2]
[329890992,1718799047928,-18378.53,0.00013698,2]
[329890995,1718799047938,-500.0,0.00013698,2]
[329890997,1718799047947,-500.0,0.00013698,2]
[329890998,1718799047956,-724.36,0.00013698,2]
[329891001,1718799047965,-500.0,0.00013698,2]
[329891003,1718799047975,-500.0,0.00013698,2]
[329891004,1718799047984,-2010.17,0.00013698,2]
[329891007,1718799047994,-500.0,0.00013698,2]
[329891008,1718799048003,-500.0,0.00013698,2]
[329891010,1718799048013,-696.91,0.00013698,2]
[329891012,1718799048023,-852.9,0.00013698,2]
[329891014,1718799048032,-26618.37,0.00013698,2]
[329891017,1718799048042,-1007.98,0.00013698,2]
[329891019,1718799048051,-545.23,0.00013698,2]
[329891021,1718799048061,-500.0,0.00013698,2]
[329891023,1718799048070,-660.94,0.00013698,2]
[329891024,1718799048080,-500.0,0.00013698,2]
[329891027,1718799048090,-500.0,0.00013698,2]
[329891028,1718799048099,-500.0,0.00013698,2]
[329891031,1718799048110,-2283.33,0.00013698,2]
[329891033,1718799048120,-2122.64,0.00013698,2]
[329891034,1718799048130,-2889.32,0.00013698,2]
[329891035,1718799048140,-500.0,0.00013698,2]
[329891036,1718799048149,-2877.53,0.00013698,2]
[329891037,1718799048158,-1201.87,0.00013698,2]
[329891038,1718799048167,-3923.19,0.00013698,2]
[329891039,1718799048176,-2254.95,0.00013698,2]
[329891040,1718799048185,-702.66,0.00013698,2]
[329891041,1718799048194,-500.0,0.00013698,2]
[329891042,1718799048202,-897.78,0.00013698,2]
[329891043,1718799048211,-1108.54,0.00013698,2]
[329891044,1718799048220,-2868.01,0.00013698,2]
[329891045,1718799048228,-1047.31,0.00013698,2]
[329891047,1718799048238,-1863.76,0.00013698,2]
[329891049,1718799048247,-500.0,0.00013698,2]
[329891051,1718799048256,-573.45,0.00013698,2]
[329891053,1718799048265,-500.0,0.00013698,2]
[329891055,1718799048274,-943.53,0.00013698,2]
[329891057,1718799048283,-500.0,0.00013698,2]
[329891059,1718799048292,-500.0,0.00013698,2]
[329891061,1718799048302,-1274.8,0.00013698,2]
[329891063,1718799048311,-500.0,0.00013698,2]
[329891065,1718799048320,-959.11,0.00013698,2]
[329891067,1718799048329,-2001.52,0.00013698,2]
[329891069,1718799048338,-4412.31,0.00013698,2]
[329891071,1718799048347,-1718.59,0.00013698,2]
[329891073,1718799048357,-570.47,0.00013698,2]
[329891075,1718799048368,-1328.43,0.00013698,2]
[329891077,1718799048378,-17494.16,0.00013698,2]
[329891079,1718799048387,-1905.75,0.00013698,2]
[329891081,1718799048398,-4451.62,0.00013698,2]
[329891083,1718799048407,-824.25,0.00013698,2]
[329891084,1718799048418,-2585.5,0.00013698,2]
[329891086,1718799048427,-500.0,0.00013698,2]
[329891088,1718799048437,-837.83,0.00013698,2]
[329891091,1718799048446,-500.0,0.00013698,2]
[329891092,1718799048460,-2458.39,0.00013698,2]
[329891095,1718799048470,-2164.64,0.00013698,2]
[329891096,1718799048479,-870.26,0.00013698,2]
[329891099,1718799048489,-1349.65,0.00013698,2]
[329891101,1718799048500,-25810.46,0.00013698,2]
[329891103,1718799048509,-823.93,0.00013698,2]
[329891105,1718799048520,-500.0,0.00013698,2]
[329891107,1718799048529,-3000.0,0.00013698,2]
[329891109,1718799048541,-500.0,0.00013698,2]
[329891111,1718799048550,-4209.65,0.00013698,2]
[329891113,1718799048560,-8301.68,0.00013698,2]
[329891115,1718799048570,-1287.95,0.00013698,2]
[329891117,1718799048579,-624.73,0.00013698,2]
[329891119,1718799048588,-880.13,0.00013698,2]
[329891121,1718799048597,-500.0,0.00013698,2]
[329891123,1718799048606,-565.67,0.00013698,2]
[329891125,1718799048615,-636.65,0.00013698,2]
[329891127,1718799048625,-1973.74,0.00013698,2]
[329891129,1718799048634,-3298.06,0.00013698,2]
[329891131,1718799048644,-1476.92,0.00013698,2]
[329891133,1718799048653,-1524.22,0.00013698,2]
[329891135,1718799048662,-500.0,0.00013698,2]
[329891137,1718799048671,-832.69,0.00013698,2]
[329891139,1718799048681,-1932.0,0.00013698,2]
[329891140,1718799048690,-2923.6,0.00013698,2]
[329891143,1718799048700,-1781.82,0.00013698,2]
[329891144,1718799048709,-821.56,0.00013698,2]
[329891147,1718799048718,-4125.28,0.00013698,2]
[329891148,1718799048728,-538.81,0.00013698,2]
[329891151,1718799048737,-507.22230924,0.00013698,2]
[329891153,1718799048746,-500.0,0.00013698,2]
[329891154,1718799048755,-558.05,0.00013698,2]
[329891156,1718799048765,-558.05,0.00013698,2]
[329891158,1718799048774,-558.05,0.00013698,2]
[329891160,1718799048784,-558.05,0.00013698,2]
[329891162,1718799048793,-558.05,0.00013698,2]
[329891164,1718799048803,-1015.36,0.00013698,2]
[329891166,1718799048813,-1334.91,0.00013698,2]
[329891169,1718799048823,-2481.53,0.00013698,2]
[329891171,1718799048832,-837.34,0.00013698,2]
[329891172,1718799048842,-3031.05,0.00013698,2]
[329891175,1718799048852,-500.0,0.00013698,2]
[329891177,1718799048863,-702.12,0.00013698,2]
[329891178,1718799048872,-500.0,0.00013698,2]
[329891181,1718799048882,-500.0,0.00013698,2]
[329891183,1718799048892,-1214.5,0.00013698,2]
[329891185,1718799048902,-1060.21,0.00013698,2]
[329891187,1718799048912,-500.0,0.00013698,2]
[329891188,1718799048922,-5172.42,0.00013698,2]
[329891190,1718799048933,-649.18,0.00013698,2]
[329891192,1718799048942,-7711.71,0.00013698,2]
[329891194,1718799048951,-1433.1,0.00013698,2]
[329891196,1718799048960,-1821.55,0.00013698,2]
[329891198,1718799048969,-500.0,0.00013698,2]
[329891200,1718799048978,-500.0,0.00013698,2]
[329891202,1718799048987,-3544.63,0.00013698,2]
[329891204,1718799048997,-500.0,0.00013698,2]
[329891206,1718799049006,-1283.42,0.00013698,2]
[329891208,1718799049016,-1193.84,0.00013698,2]
[329891210,1718799049025,-5221.12,0.00013698,2]
[329891212,1718799049034,-3347.12,0.00013698,2]
[329891214,1718799049044,-918.16,0.00013698,2]
[329891216,1718799049053,-511.72,0.00013698,2]
[329891218,1718799049062,-2860.37,0.00013698,2]
[329891220,1718799049071,-2260.58,0.00013698,2]
[329891222,1718799049080,-500.0,0.00013698,2]
[329891224,1718799049089,-8208.7,0.00013698,2]
[329891226,1718799049099,-8958.28,0.00013698,2]
[329891228,1718799049109,-619.32,0.00013698,2]
[329891230,1718799049118,-771.23,0.00013698,2]
[329891232,1718799049128,-1032.05,0.00013698,2]
[329891234,1718799049138,-537.71,0.00013698,2]
[329891236,1718799049147,-4572.65,0.00013698,2]
[329891238,1718799049156,-1221.81,0.00013698,2]
[329891240,1718799049166,-500.0,0.00013698,2]
[329891242,1718799049175,-500.0,0.00013698,2]
[329891244,1718799049184,-2508.73,0.00013698,2]
[329891246,1718799049193,-1979.86,0.00013698,2]
[329891248,1718799049203,-19337.53,0.00013698,2]
[329891250,1718799049212,-5320.69,0.00013698,2]
[329891252,1718799049222,-669.49,0.00013698,2]
[329891254,1718799049231,-500.0,0.00013698,2]
[329891256,1718799049241,-500.0,0.00013698,2]
[329891258,1718799049250,-500.0,0.00013698,2]
[329891260,1718799049260,-500.0,0.00013698,2]
[329891262,1718799049270,-589.17,0.00013698,2]
[329891264,1718799049280,-1456.29,0.00013698,2]
[329891266,1718799049289,-1321.09,0.00013698,2]
[329891268,1718799049299,-500.0,0.00013698,2]
[329891270,1718799049308,-1052.12,0.00013698,2]
[329891272,1718799049318,-500.0,0.00013698,2]
[329891274,1718799049328,-2327.61,0.00013698,2]
[329891276,1718799049337,-506.85,0.00013698,2]
[329891278,1718799049346,-1579.59,0.00013698,2]
[329891280,1718799049355,-1905.94,0.00013698,2]
[329891282,1718799049365,-7207.31,0.00013698,2]